fUSD/lending_fUSD_20260217
["ID","MTS","AMOUNT","RATE_DAILY","PERIOD"]
[405791839,1771312258206,-500.0,0.00027864,14]
[405791840,1771312258216,-500.0,0.00027864,14]
[405791841,1771312258226,-320.0,0.00027944,10]
[405791842,1771312258235,-289.0,0.00027944,10]
[405791843,1771312258244,-16424.82103856,0.00028,2]
[405791844,1771312258262,-779.38096849,0.00028,2]
[405791845,1771312258273,-420.99270416,0.00028,2]
[405791846,1771312258806,-2425.33,0.00028,2]
[405791847,1771312258941,-591.81818192,0.00022958,2]
[405791848,1771312258953,-856.78120213,0.00022958,2]
[405791849,1771312259079,-1000.0,0.00022958,2]
[405791850,1771312259400,-3.40061595,0.00022958,2]
[405791851,1771312259409,-266.2184697,0.000231,2]
[405791852,1771312259419,-2452.0,0.00025958,2]
[405791853,1771312259428,-169.059153,0.00027397,2]
[405791854,1771312259438,-108.98353016,0.00027397,2]
[405791855,1771312259449,-60.07562284,0.00027397,2]
[405791856,1771312259460,-169.059153,0.00027397,2]
[405791857,1771312259477,-40.20522416,0.00027397,2]
[405791858,1771312316430,150.34,7.523e-05,2]
[405791864,1771312787578,303.62136604,8.023e-05,2]
[405791865,1771312796444,1501.1,7.3e-05,2]
[405791866,1771312800800,504.52861774,0.00015595,60]
[405791950,1771313432047,-205.0,9.8e-05,2]
[405791951,1771313432059,-231.0,9.8e-05,2]
[405791952,1771313432069,-250.0,9.911e-05,2]
[405791953,1771313432079,-149.60817854,0.00010023,2]
[405791954,1771313432091,-32.56464108,0.00010023,2]
[405791955,1771313432101,-250.0,0.00010155,2]
[405791956,1771313432113,-173.94077043,0.00010186,2]
[405791957,1771313432131,-102.05301061,0.00010186,2]
[405791958,1771313432141,-151.0,0.00010193,2]
[405791959,1771313432151,-247.94698939,0.00010194,2]
[405791960,1771313432171,-346.84803172,0.00010194,2]
[405791961,1771313432187,-605.20497889,0.00010194,2]
[405791962,1771313432198,-300.0,0.00010194,2]
[405791963,1771313432208,-4.11355271,0.00010194,2]
[405791964,1771313432220,-289.68515909,0.00010194,2]
[405791965,1771313432232,-6.2012882,0.00010194,2]
[405791966,1771313432243,-993.7987118,0.00010195,2]
[405791967,1771313432255,-343.01153381,0.00010195,2]
[405791968,1771313432267,-1101.72282174,0.00010195,2]
[405791969,1771313432278,-343.31609247,0.00010195,2]
[405791970,1771313432290,-2002.53974949,0.00010195,2]
[405791971,1771313432300,-349.00829705,0.00010195,2]
[405791995,1771313438607,-500.0,0.00010195,2]
[405791997,1771313438617,-276.65069513,0.00010195,2]
[405791999,1771313438627,-333.59598065,0.00010195,2]
[405792001,1771313438637,-500.0,0.00010195,2]
[405792004,1771313438647,-500.0,0.00010195,2]
[405792006,1771313438657,-373.51940317,0.00010195,2]
[405792008,1771313438667,-500.0,0.00010195,2]
[405792010,1771313438677,-500.0,0.00010195,2]
[405792012,1771313438688,-500.0,0.00010195,2]
[405792014,1771313438697,-500.0,0.00010195,2]
[405792016,1771313438707,-500.0,0.00010195,2]
[405792018,1771313438720,-500.0,0.00010195,2]
[405792020,1771313438730,-500.0,0.00010195,2]
[405792022,1771313438740,-500.0,0.00010195,2]
[405792024,1771313438750,-500.0,0.00010195,2]
[405792026,1771313438761,-500.0,0.00010195,2]
[405792028,1771313438771,-500.0,0.00010195,2]
[405792030,1771313438781,-500.0,0.00010195,2]
[405792032,1771313438791,-500.0,0.00010195,2]
[405792034,1771313438801,-500.0,0.00010195,2]
[405792036,1771313438813,-302.28396601,0.00010195,2]
[405792038,1771313438823,-500.0,0.00010195,2]
[405792040,1771313438832,-500.0,0.00010195,2]
[405792042,1771313438842,-500.0,0.00010195,2]
[405792044,1771313438852,-500.0,0.00010195,2]
[405792046,1771313438861,-500.0,0.00010195,2]
[405792048,1771313438871,-500.0,0.00010195,2]
[405792050,1771313438881,-500.0,0.00010195,2]
[405792052,1771313438891,-500.0,0.00010195,2]
[405792054,1771313438901,-500.0,0.00010195,2]
[405792055,1771313438911,-500.0,0.00010195,2]
[405792057,1771313438922,-500.0,0.00010195,2]
[405792060,1771313438932,-500.0,0.00010195,2]
[405792062,1771313438942,-500.0,0.00010195,2]
[405792064,1771313438951,-500.0,0.00010195,2]
[405792066,1771313438961,-500.0,0.00010195,2]
[405792067,1771313438973,-500.0,0.00010195,2]
[405792070,1771313438983,-500.0,0.00010195,2]
[405792072,1771313438993,-500.0,0.00010195,2]
[405792074,1771313439004,-947.1249624,0.00010195,2]
[405792076,1771313439015,-150.0,0.00010195,2]
[405792078,1771313439025,-3500000.0,0.00010196,2]
[405792080,1771313439036,-241.0,0.00010295,2]
[405792082,1771313439046,-13099.43824368,0.00010296,2]
[405792084,1771313439056,-599.30729542,0.00010361,2]
[405792086,1771313439066,-150.0,0.000107,2]
[405792088,1771313439075,-250.0,0.0001078,2]
[405792090,1771313439086,-599.30729542,0.00010891,2]
[405792092,1771313439096,-216.55,0.000109,2]
[405792094,1771313439106,-500.0,0.00010973,2]
[405792096,1771313439116,-164.61380668,0.00010973,2]
[405792098,1771313439126,-226.12222085,0.00010973,2]
[405792100,1771313439136,-500.81972658,0.00010973,2]
[405792102,1771313439145,-500.0,0.00010973,2]
[405792104,1771313439154,-6034.81891893,0.00011,2]
[405792106,1771313439164,-269.39,0.00011025,2]
[405792108,1771313439174,-255.0,0.00011204,2]
[405792110,1771313439184,-420.0,0.00011211,2]
[405792112,1771313439196,-420.0,0.00011211,2]
[405792114,1771313439206,-1680.0,0.00011213,2]
[405792116,1771313439216,-1295.076566,0.00011264,2]
[405792118,1771313439226,-269.39,0.00011299,2]
[405792120,1771313439235,-347.0,0.00011302,2]
[405792122,1771313439245,-599.30729542,0.00011421,2]
[405792124,1771313439255,-275.99378104,0.00011511,2]
[405792126,1771313439264,-999.99,0.00011521,2]
[405792128,1771313439274,-29124.47,0.00011521,2]
[405792130,1771313439283,-4513.72,0.00011521,2]
[405792132,1771313439293,-9999.99,0.00011521,2]
[405792134,1771313439303,-2106.28,0.00011521,2]
[405792136,1771313439313,-515.68,0.00011521,2]
[405792138,1771313439322,-2315.35,0.00011521,2]
[405792140,1771313439332,-150.99,0.00011521,2]
[405792142,1771313439342,-299.99,0.00011521,2]
[405792144,1771313439351,-9999.99,0.00011521,2]
[405792146,1771313439361,-150.99,0.00011521,2]
[405792148,1771313439370,-1000.0,0.00011521,2]
[405792150,1771313439380,-269.39,0.00011573,2]
[405792152,1771313439389,-989.15851638,0.00011602,2]
[405792154,1771313439399,-1500.0,0.00011755,2]
[405792156,1771313439409,-2500.0,0.0001179,2]
[405792158,1771313439418,-500.0,0.00011857,2]
[405792160,1771313439428,-1488.83065608,0.00011857,2]
[405792162,1771313439438,-7350.17108343,0.00011857,2]
[405792164,1771313439447,-5300.13656816,0.00011857,2]
[405792166,1771313439457,-159.0,0.00011957,2]
[405792168,1771313439466,-500.0,0.00011983,2]
[405792170,1771313439478,-151.0,0.00011983,2]
[405792172,1771313439487,-500.0,0.00011983,2]
[405792174,1771313439497,-151.0,0.00011983,2]
[405792176,1771313439506,-500.0,0.00011983,2]
[405792178,1771313439515,-151.0,0.00011983,2]
[405792180,1771313439525,-500.0,0.00011983,2]
[405792182,1771313439534,-151.0,0.00011983,2]
[405792184,1771313439544,-500.0,0.00011983,2]
[405792186,1771313439564,-151.0,0.00011983,2]
[405792188,1771313439578,-500.0,0.00011983,2]
[405792190,1771313439588,-151.0,0.00011983,2]
[405792192,1771313439597,-500.0,0.00011983,2]
[405792194,1771313439606,-151.0,0.00011983,2]
[405792197,1771313439615,-500.0,0.00011983,2]
[405792199,1771313439624,-151.0,0.00011983,2]
[405792201,1771313439632,-500.0,0.00011983,2]
[405792203,1771313439642,-151.0,0.00011983,2]
[405792205,1771313439651,-500.0,0.00011983,2]
[405792207,1771313439659,-151.0,0.00011983,2]
[405792209,1771313439669,-151.0,0.00011983,2]
[405792211,1771313439679,-500.0,0.00011983,2]
[405792213,1771313439688,-500.0,0.00011983,2]
[405792215,1771313439696,-500.0,0.00011983,2]
[405792217,1771313439705,-500.0,0.00011983,2]
[405792219,1771313439715,-500.0,0.00011983,2]
[405792221,1771313439727,-500.0,0.00011983,2]
[405792223,1771313439736,-500.0,0.00011983,2]
[405792225,1771313439745,-500.0,0.00011983,2]
[405792227,1771313439755,-500.0,0.00011983,2]
[405792229,1771313439765,-500.0,0.00011983,2]
[405792231,1771313439774,-500.0,0.00011983,2]
[405792233,1771313439783,-226.88409827,0.00011983,2]
[405792235,1771313439794,-500.0,0.00011983,2]
[405792237,1771313439804,-500.0,0.00011983,2]
[405792239,1771313439813,-151.0,0.00011983,2]
[405792241,1771313439822,-200.0,0.00011983,2]
[405792243,1771313439832,-151.0,0.00011983,2]
[405792245,1771313439841,-500.0,0.00011983,2]
[405792247,1771313439850,-151.0,0.00011983,2]
[405792249,1771313439860,-151.0,0.00011983,2]
[405792251,1771313439869,-151.0,0.00011983,2]
[405792253,1771313439879,-151.0,0.00011983,2]
[405792255,1771313439888,-151.0,0.00011983,2]
[405792257,1771313439898,-151.0,0.00011983,2]
[405792259,1771313439908,-151.0,0.00011983,2]
[405792261,1771313439917,-151.0,0.00011983,2]
[405792263,1771313439928,-200.0,0.00011983,2]
[405792265,1771313439938,-151.0,0.00011983,2]
[405792267,1771313439948,-151.0,0.00011983,2]
[405792269,1771313439958,-151.0,0.00011983,2]
[405792272,1771313439969,-151.0,0.00011983,2]
[405792274,1771313439979,-151.0,0.00011983,2]
[405792276,1771313439989,-151.0,0.00011983,2]
[405792278,1771313439999,-151.0,0.00011983,2]
[405792280,1771313440012,-151.0,0.00011983,2]
[405792282,1771313440029,-151.0,0.00011983,2]
[405792284,1771313440038,-151.0,0.00011983,2]
[405792286,1771313440050,-1500.0,0.00012068,2]
[405792288,1771313440060,-10704.74331727,0.00012085,2]
[405792290,1771313440069,-7350.17108337,0.00012093,2]
[405792292,1771313440078,-1288.0,0.00012139,2]
[405792294,1771313440087,-265.0,0.00012139,2]
[405792296,1771313440097,-943.0,0.00012163,2]
[405792298,1771313440106,-377.0,0.00012163,2]
[405792300,1771313440115,-361.0,0.00012188,2]
[405792302,1771313440124,-10704.74331727,0.00012312,2]
[405792305,1771313440134,-433.0,0.00012315,2]
[405792306,1771313440144,-7350.17108337,0.00012329,2]
[405792307,1771313440154,-587.0,0.0001233,2]
[405792308,1771313440163,-2351.0,0.00012335,2]
[405792309,1771313440173,-200.0,0.00012531,2]
[405792310,1771313440183,-500.0,0.00012531,2]
[405792334,1771313440465,-200.0,0.00012531,2]
[405792336,1771313440476,-10704.74331727,0.0001254,2]
[405792338,1771313440485,-7350.17108337,0.00012565,2]
[405792340,1771313440496,-846.3153877,0.00012616,2]
[405792342,1771313440505,-5300.13656815,0.0001272,2]
[405792344,1771313440514,-10704.74331727,0.00012768,2]
[405792346,1771313440524,-7350.17108337,0.00012801,2]
[405792348,1771313440533,-70181.97252511,0.000129,2]
[405792350,1771313440542,-250.0,0.00012949,2]
[405792352,1771313440552,-10704.74331727,0.00012995,2]
[405792354,1771313440561,-500.0,0.00013028,2]
[405792356,1771313440570,-7350.17108337,0.00013036,2]
[405792358,1771313440579,-178.89,0.00013044,2]
[405792360,1771313440588,-200.0,0.00013079,2]
[405792362,1771313440597,-500.0,0.00013079,2]
[405792364,1771313440607,-200.0,0.00013079,2]
[405792366,1771313440616,-10704.74331727,0.00013223,2]
[405792368,1771313440625,-7350.17108337,0.00013272,2]
[405792370,1771313440634,-500.0,0.00013425,2]
[405792372,1771313440643,-150.0,0.00013425,2]
[405792374,1771313440651,-150.0,0.00013425,2]
[405792376,1771313440660,-150.0,0.00013425,2]
[405792378,1771313440669,-10704.74331727,0.00013451,2]
[405792381,1771313440679,-500.0,0.0001348,2]
[405792383,1771313440688,-150.0,0.0001348,2]
[405792385,1771313440697,-150.0,0.0001348,2]
[405792387,1771313440707,-7350.17108337,0.00013508,2]
[405792389,1771313440716,-1618.845708,0.00013517,2]
[405792391,1771313440728,-2911.26589486,0.00013518,2]
[405792393,1771313440737,-736.0,0.00013529,2]
[405792395,1771313440746,-500.0,0.00013535,2]
[405792397,1771313440755,-210.76125773,0.00013535,2]
[405792399,1771313440767,-168.80031656,0.00013535,2]
[405792401,1771313440776,-823.0,0.0001356,2]
[405792403,1771313440785,-3292.0,0.00013568,2]
[405792405,1771313440796,-5300.13656815,0.00013584,2]
[405792407,1771313440805,-500.0,0.00013589,2]
[405792409,1771313440814,-200.0,0.00013627,2]
[405792411,1771313440824,-500.0,0.00013627,2]
[405792413,1771313440833,-200.0,0.00013627,2]
[405792415,1771313440842,-500.0,0.00013644,2]
[405792417,1771313440851,-10704.74331727,0.00013678,2]
[405792419,1771313440860,-3514.826,0.00013695,2]
[405792421,1771313440869,-299.032,0.00013695,2]
[405792423,1771313440878,-500.0,0.00013698,2]
[405792425,1771313440887,-500.0,0.00013698,2]
[405792427,1771313440895,-500.0,0.00013698,2]
[405792429,1771313440904,-500.0,0.00013698,2]
[405792431,1771313440913,-500.0,0.00013698,2]
[405792433,1771313440923,-500.0,0.00013698,2]
[405792435,1771313440932,-500.0,0.00013698,2]
[405792437,1771313440941,-500.0,0.00013698,2]
[405792439,1771313440950,-500.0,0.00013698,2]
[405792442,1771313440959,-500.0,0.00013698,2]
[405792444,1771313440968,-500.0,0.00013698,2]
[405792446,1771313440977,-500.0,0.00013698,2]
[405792448,1771313440986,-500.0,0.00013698,2]
[405792450,1771313440995,-500.0,0.00013698,2]
[405792452,1771313441005,-500.0,0.00013698,2]
[405792454,1771313441015,-500.0,0.00013698,2]
[405792456,1771313441024,-500.0,0.00013698,2]
[405792458,1771313441036,-544.50619195,0.00013698,2]
[405792460,1771313441045,-500.0,0.00013698,2]
[405792462,1771313441054,-500.0,0.00013698,2]
[405792464,1771313441064,-500.0,0.00013698,2]
[405792466,1771313441073,-500.0,0.00013698,2]
[405792468,1771313441082,-500.0,0.00013698,2]
[405792470,1771313441091,-500.0,0.00013698,2]
[405792472,1771313441100,-500.0,0.00013698,2]
[405792473,1771313441109,-500.0,0.00013698,2]
[405792475,1771313441118,-500.0,0.00013698,2]
[405792477,1771313441127,-500.0,0.00013698,2]
[405792480,1771313441136,-500.0,0.00013698,2]
[405792482,1771313441145,-500.0,0.00013698,2]
[405792484,1771313441154,-500.0,0.00013698,2]
[405792486,1771313441163,-500.0,0.00013698,2]
[405792488,1771313441173,-500.0,0.00013698,2]
[405792490,1771313441184,-500.0,0.00013698,2]
[405792492,1771313441192,-500.0,0.00013699,2]
[405792494,1771313441201,-7350.17108337,0.00013744,2]
[405792496,1771313441211,-500.0,0.00013754,2]
[405792498,1771313441220,-500.0,0.00013777,2]
[405792500,1771313441229,-510.0,0.00013777,2]
[405792502,1771313441238,-500.0,0.00013809,2]
[405792504,1771313441247,-542.20843734,0.00013814,2]
[405792506,1771313441256,-500.0,0.00013863,2]
[405792508,1771313441265,-13457.98,0.00013864,2]
[405792510,1771313441279,-361.59516875,0.00013906,2]
[405792512,1771313441300,-10704.74331727,0.00013906,2]
[405792514,1771313441322,-151.0,0.00013911,2]
[405792516,1771313441345,-500.0,0.00013913,2]
[405792518,1771313441374,-500.0,0.00013913,2]
[405792520,1771313441392,-500.0,0.00013913,2]
[405792522,1771313441414,-500.0,0.00013913,2]
[405792524,1771313441438,-500.0,0.00013913,2]
[405792526,1771313441459,-500.0,0.00013913,2]
[405792528,1771313441483,-500.0,0.00013913,2]
[405792530,1771313441506,-500.0,0.00013913,2]
[405792532,1771313441531,-500.0,0.00013913,2]
[405792533,1771313441555,-500.0,0.00013913,2]
[405792534,1771313441576,-500.0,0.00013913,2]
[405792535,1771313441597,-500.0,0.00013913,2]
[405792536,1771313441616,-500.0,0.00013913,2]
[405792537,1771313441625,-500.0,0.00013913,2]
[405792538,1771313441635,-500.0,0.00013913,2]
[405792539,1771313441644,-500.0,0.00013913,2]
[405792540,1771313441654,-500.0,0.00013913,2]
[405792541,1771313441665,-430.55674509,0.00013913,2]
[405792542,1771313441674,-236.9063384,0.00013913,2]
[405792543,1771313441684,-1242242.5097,0.00013914,2]
[405792544,1771313441694,-500.0,0.00013918,2]
[405792545,1771313441704,-500.0,0.00013973,2]
[405792546,1771313441713,-7350.17108337,0.0001398,2]
[405792547,1771313441728,-500.0,0.00014028,2]
[405792548,1771313441738,-2438.53306734,0.00014048,2]
[405792549,1771313441747,-2345.85584194,0.00014048,2]
[405792550,1771313441758,-246211.82625763,0.0001408,2]
[405792551,1771313441768,-500.0,0.00014083,2]
[405792552,1771313441778,-500.0,0.00014137,2]
[405792553,1771313441795,-200.0,0.00014175,2]
[405792554,1771313441817,-503.55960548,0.00014175,2]
[405792555,1771313441839,-201.41552809,0.00014175,2]
[405792556,1771313441863,-500.0,0.00014192,2]
[405792557,1771313441886,-266.33885806,0.00014247,2]
[405792558,1771313441906,-7658.84032483,0.0001439,2]
[405792559,1771313441927,-5300.13656815,0.00014447,2]
[405792560,1771313441948,-151.0,0.00014634,2]
[405792561,1771313441972,-151.0,0.00014634,2]
[405792562,1771313441996,-151.0,0.00014634,2]
[405792563,1771313442020,-500.0,0.00014722,2]
[405792564,1771313442043,-201.77822118,0.00014723,2]
[405792565,1771313442066,-1488.83065607,0.00014884,2]
[405792566,1771313442089,-1152.0,0.00014913,2]
[405792567,1771313442111,-1804.0,0.00014925,2]
[405792568,1771313442134,-250.0,0.00015,2]
[405792569,1771313442143,-2055.50045313,0.00015,2]
[405792570,1771313442153,-8002.23365242,0.00015,2]
[405792571,1771313442165,-418.83903334,0.00015,2]
[405792572,1771313442175,-160.0,0.00015261,2]
[405792573,1771313442184,-173.57638878,0.00015261,2]
[405792574,1771313442193,-1517.64,0.000153,2]
[405792575,1771313442202,-5300.13656815,0.0001531,2]
[405792576,1771313442211,-509.61038486,0.000154,2]
[405792577,1771313442223,-2245.73805852,0.00015807,2]
[405792578,1771313442233,-484.11558281,0.00015927,2]
[405792579,1771313442242,-5000.0,0.0001596,2]
[405792580,1771313442251,-303.26122484,0.00016,2]
[405792581,1771313442261,-7910.59,0.00016116,2]
[405792582,1771313442270,-5300.13656815,0.00016173,2]
[405792583,1771313442282,-94419.68501233,0.000162,5]
[405792584,1771313442291,-484.11558281,0.00016325,2]
[405792585,1771313442299,-200.0,0.0001634,2]
[405792586,1771313442308,-1634.14,0.0001661,2]
[405792587,1771313442318,-293.87,0.00016763,2]
[405792588,1771313442327,-2634.092943,0.00016896,7]
[405792589,1771313442337,-1942.61485,0.00016896,7]
[405792590,1771313442346,-275.99378104,0.0001699,2]
[405792591,1771313442356,-500.0,0.00016999,2]
[405792592,1771313442365,-300.0,0.00017,2]
[405792593,1771313442374,-502.0,0.00017,2]
[405792594,1771313442383,-722096.52522804,0.00017,2]
[405792595,1771313442392,-5300.13656815,0.00017037,2]
[405792596,1771313442402,-500.0,0.00017275,2]
[405792597,1771313442411,-500.0,0.00017275,2]
[405792598,1771313442420,-586.96513288,0.00017275,2]
[405792599,1771313442429,-1421.82630279,0.00017275,2]
[405792600,1771313442438,-721.12765535,0.00017275,2]
[405792601,1771313442447,-151.0,0.00017275,2]
[405792602,1771313442456,-209.40437684,0.00017275,2]
[405792603,1771313442465,-151.0,0.00017275,2]
[405792604,1771313442475,-250.0,0.00017275,2]
[405792605,1771313442484,-151.0,0.00017275,2]
[405792606,1771313442494,-160.0,0.00017275,2]
[405792607,1771313442503,-250.0,0.00017275,2]
[405792608,1771313442512,-151.0,0.00017275,2]
[405792609,1771313442521,-254.77802588,0.00017275,2]
[405792610,1771313442530,-151.0,0.00017275,2]
[405792611,1771313442539,-151.0,0.00017275,2]
[405792612,1771313442549,-151.0,0.00017275,2]
[405792613,1771313442558,-261.90795033,0.00017275,2]
[405792614,1771313442568,-200.0,0.00017275,2]
[405792615,1771313442577,-1000.0,0.00017275,2]
[405792616,1771313442587,-3000.0,0.00017275,2]
[405792617,1771313442597,-3000.0,0.00017275,2]
[405792618,1771313442607,-1000.0,0.00017275,2]
[405792619,1771313442616,-3000.0,0.00017275,2]
[405792620,1771313442626,-526.36214318,0.00017275,2]
[405792621,1771313442635,-3000.0,0.00017275,2]
[405792622,1771313442645,-3000.0,0.00017275,2]
[405792623,1771313442654,-250.0,0.00017275,2]
[405792624,1771313442663,-3000.0,0.00017275,2]
[405792625,1771313442672,-250.0,0.00017275,2]
[405792626,1771313442682,-3000.0,0.00017275,2]
[405792627,1771313442692,-1070.81608438,0.00017275,2]
[405792628,1771313442701,-3000.0,0.00017275,2]
[405792629,1771313442710,-250.0,0.00017275,2]
[405792630,1771313442723,-3000.0,0.00017275,2]
[405792631,1771313442732,-250.0,0.00017275,2]
[405792632,1771313442742,-3099.28707761,0.00017275,2]
[405792633,1771313442751,-250.0,0.00017275,2]
[405792634,1771313442762,-302.70619241,0.00017275,2]
[405792635,1771313442772,-250.0,0.00017275,2]
[405792636,1771313442782,-250.0,0.00017275,2]
[405792637,1771313442791,-250.0,0.00017275,2]
[405792638,1771313442801,-250.0,0.00017275,2]
[405792639,1771313442810,-250.0,0.00017275,2]
[405792640,1771313442819,-299.40346672,0.00017275,2]
[405792641,1771313442829,-162.380719,0.00017275,2]
[405792642,1771313442839,-177.7218892,0.00017275,2]
[405792643,1771313442849,-151.0,0.00017275,2]
[405792644,1771313442859,-250.0,0.00017275,2]
[405792645,1771313442868,-250.0,0.00017275,2]
[405792646,1771313442878,-693.3919763,0.00017275,2]
[405792647,1771313442887,-250.0,0.00017275,2]
[405792648,1771313442896,-250.0,0.00017275,2]
[405792649,1771313442906,-250.0,0.00017275,2]
[405792650,1771313442916,-250.0,0.00017275,2]
[405792651,1771313442925,-151.12957794,0.00017275,2]
[405792652,1771313442935,-250.0,0.00017275,2]
[405792653,1771313442945,-250.0,0.00017275,2]
[405792654,1771313442955,-250.0,0.00017275,2]
[405792655,1771313442969,-250.0,0.00017275,2]
[405792656,1771313442984,-250.0,0.00017275,2]
[405792657,1771313442994,-250.0,0.00017275,2]
[405792658,1771313443004,-250.0,0.00017275,2]
[405792659,1771313443014,-253.83621088,0.00017275,2]
[405792660,1771313443024,-250.0,0.00017275,2]
[405792661,1771313443034,-250.0,0.00017275,2]
[405792662,1771313443044,-250.0,0.00017275,2]
[405792663,1771313443054,-250.0,0.00017275,2]
[405792664,1771313443064,-250.0,0.00017275,2]
[405792665,1771313443074,-250.0,0.00017275,2]
[405792666,1771313443083,-250.0,0.00017275,2]
[405792667,1771313443093,-250.0,0.00017275,2]
[405792669,1771313443103,-250.0,0.00017275,2]
[405792670,1771313443113,-250.0,0.00017275,2]
[405792671,1771313443122,-250.0,0.00017275,2]
[405792672,1771313443132,-250.0,0.00017275,2]
[405792673,1771313443142,-250.0,0.00017275,2]
[405792674,1771313443151,-250.0,0.00017275,2]
[405792675,1771313443161,-250.0,0.00017275,2]
[405792676,1771313443171,-250.0,0.00017275,2]
[405792677,1771313443180,-250.0,0.00017275,2]
[405792678,1771313443190,-250.0,0.00017275,2]
[405792679,1771313443200,-250.0,0.00017275,2]
[405792680,1771313443210,-250.0,0.00017275,2]
[405792681,1771313443220,-279.55615727,0.00017275,2]
[405792682,1771313443230,-578.20924308,0.00017275,2]
[405792683,1771313443239,-151.0,0.0001733,2]
[405792684,1771313443249,-719.04747942,0.0001733,2]
[405792685,1771313443259,-151.0,0.00017385,2]
[405792686,1771313443269,-745.65223616,0.00017385,2]
[405792687,1771313443279,-151.0,0.0001744,2]
[405792688,1771313443288,-773.2413689,0.0001744,2]
[405792689,1771313443298,-151.0,0.00017495,2]
[405792690,1771313443308,-801.85129955,0.00017495,2]
[405792691,1771313443318,-1000.0,0.0001755,2]
[405792692,1771313443328,-1000.0,0.0001755,2]
[405792693,1771313443338,-1000.0,0.0001755,2]
[405792694,1771313443348,-1000.0,0.0001755,2]
[405792695,1771313443358,-1000.0,0.0001755,2]
[405792696,1771313443368,-151.0,0.0001755,2]
[405792697,1771313443377,-831.51979763,0.0001755,2]
[405792698,1771313443387,-151.0,0.00017605,2]
[405792699,1771313443398,-862.28603014,0.00017605,2]
[405792700,1771313443408,-500.0,0.00017616,2]
[405792701,1771313443418,-237.28842339,0.00017616,2]
[405792702,1771313443428,-500.0,0.00017616,2]
[405792703,1771313443437,-151.0,0.0001766,2]
[405792704,1771313443447,-894.19061326,0.0001766,2]
[405792705,1771313443457,-500.0,0.00017671,2]
[405792706,1771313443468,-500.0,0.00017671,2]
[405792707,1771313443478,-784.32813885,0.000177,2]
[405792708,1771313443488,-403.0,0.000177,5]
[405792709,1771313443497,-151.0,0.00017715,2]
[405792710,1771313443507,-927.27566595,0.00017715,2]
[405792711,1771313443516,-502.0,0.00017716,2]
[405792712,1771313443526,-220.15883999,0.00017726,2]
[405792713,1771313443535,-500.0,0.00017726,2]
[405792714,1771313443545,-151.0,0.0001777,2]
[405792715,1771313443555,-961.58486559,0.0001777,2]
[405792716,1771313443564,-500.0,0.0001778,2]
[405792717,1771313443574,-444.64,0.00017808,2]
[405792718,1771313443584,-500.0,0.00017808,2]
[405792719,1771313443594,-500.0,0.00017808,2]
[405792720,1771313443604,-500.0,0.00017808,2]
[405792721,1771313443613,-500.0,0.00017808,2]
[405792722,1771313443624,-595.71508911,0.00017808,2]
[405792723,1771313443635,-500.0,0.00017808,2]
[405792724,1771313443645,-500.0,0.00017808,2]
[405792725,1771313443656,-500.0,0.00017808,2]
[405792726,1771313443667,-500.0,0.00017808,2]
[405792727,1771313443677,-800.0,0.00017808,2]
[405792728,1771313443688,-250.0,0.00017808,20]
[405792729,1771313443698,-250.0,0.00017808,20]
[405792730,1771313443707,-250.0,0.00017808,20]